fUST/lending_fUST_20251023
["ID","MTS","AMOUNT","RATE_DAILY","PERIOD"]
[392121697,1761177032401,-223.127504,0.00030911,5]
[392121710,1761177032506,-400.0,0.00031134,2]
[392121712,1761177032516,-245.261632,0.00031135,2]
[392121714,1761177032526,-2450.19899759,0.00031135,2]
[392121716,1761177032535,-440.95831383,0.00031205,2]
[392121718,1761177032544,-223.127504,0.00031982,2]
[392121720,1761177032553,-492.49889597,0.00033205,120]
[392121722,1761177032562,-250.0,0.00033304,2]
[392121724,1761177032571,-223.127504,0.00033361,15]
[392121727,1761177032580,-486.34894336,0.00033516,2]
[392121902,1761177038298,-73.65105664,0.00033516,2]
[392121903,1761177038307,-185.94,0.00034039,5]
[392121904,1761177038316,-163.33,0.00034039,5]
[392121905,1761177038325,-163.33,0.00034039,5]
[392121906,1761177038334,-65.49915483,0.00034039,5]
[392121925,1761177060573,2000.0,0.000241,2]
[392121930,1761177261195,2000.0,0.000241,2]
[392121931,1761177285856,880.272893,0.000201,10]
[392121932,1761177285883,1119.727107,0.000201,10]
[392121938,1761177566078,2000.0,0.000241,2]
[392121997,1761178232560,-442.0666617,0.00025204,2]
[392121999,1761178232641,-645.42,0.00025204,2]
[392122000,1761178232655,-229.5133383,0.00025204,2]
[392122001,1761178232665,-196.19151614,0.00025204,2]
[392122235,1761178247231,-51.20327812,0.00025204,2]
[392122237,1761178247241,-170.264682,0.0002599,2]
[392122238,1761178247250,-291.92585722,0.00027204,2]
[392122240,1761178247260,-336.45692019,0.00029204,2]
[392122242,1761178247269,-222.021,0.0003,2]
[392122244,1761178247278,-170.264682,0.0003,15]
[392122246,1761178247288,-170.264682,0.00030577,2]
[392122248,1761178247297,-170.264682,0.00030864,5]
[392122250,1761178247306,-817.81464692,0.00031,2]
[392122280,1761179217955,309.450788,0.00013699,2]
[392122281,1761179218158,309.450788,0.00020187,2]
[392122340,1761179432665,-763.47609461,0.00025,2]
[392122341,1761179432677,-1242.54736458,0.00025,2]
[392122342,1761179432686,-246.1893217,0.00025026,2]
[392122343,1761179432696,-177.07527,0.00025826,2]
[392122344,1761179432705,-309.450788,0.00026676,2]
[392122345,1761179432714,-290.50339961,0.00027026,2]
[392122346,1761179432723,-665.06725183,0.00029,2]
[392122519,1761180539211,160.0,0.000241,3]
[392122520,1761180539929,160.0,0.000241,3]
[392122564,1761180631769,-241.78199033,0.00025229,2]
[392122565,1761180631779,-165.0,0.000253,7]
[392122566,1761180631788,-160.0,0.000253,7]
[392122567,1761180631799,-285.30274859,0.00027229,2]
[392122568,1761180631808,-160.0,0.00029,15]
[392122569,1761180631818,-332.78292157,0.00029,2]
[392122570,1761180631830,-954.45594316,0.00029,2]
[392122571,1761180631845,-499.94113527,0.00029,2]
[392122572,1761180631855,-328.82350685,0.00029229,2]
[392122575,1761180631968,-151.6810832,0.00029578,2]
[392122576,1761180631979,-273.02594976,0.00029578,2]
[392122577,1761180631988,-250.0,0.00029666,2]
[392122578,1761180631998,-264.84987563,0.00029889,14]
[392122612,1761180646072,-165.0564623,0.00029,10]
[392122613,1761180646084,-191.726479,0.00029666,30]
[392122614,1761180646093,-191.726479,0.00029666,30]
[392122615,1761180646104,-191.726479,0.00029666,30]
[392122616,1761180646115,-151.0,0.00029666,30]
[392122617,1761180646125,-179.283655,0.00029666,30]
[392122618,1761180646174,-12.442824,0.00029666,30]
[392122619,1761180646185,-235.15012437,0.00029889,14]
[392122620,1761180646195,-403.14601822,0.00029906,2]
[392122621,1761180646205,-300.0,0.00029998,2]
[392122622,1761180646215,-151.0,0.00029999,7]
[392122623,1761180646224,-151.0,0.00029999,7]
[392122624,1761180646233,-151.0,0.00029999,30]
[392122625,1761180646243,-196.81,0.00029999,30]
[392122626,1761180646253,-151.0,0.00029999,2]
[392122627,1761180646263,-151.0,0.00029999,2]
[392122628,1761180646272,-151.0,0.00029999,2]
[392122629,1761180646282,-151.0,0.00029999,2]
[392122630,1761180646291,-151.0,0.00029999,30]
[392122631,1761180646300,-151.0,0.00029999,30]
[392122632,1761180646310,-151.0,0.00029999,30]
[392122633,1761180646320,-151.0,0.00029999,30]
[392122634,1761180646330,-183.56424,0.00029999,30]
[392122635,1761180646339,-151.0,0.00029999,30]
[392122636,1761180646349,-191.726479,0.00029999,30]
[392122637,1761180646359,-191.726479,0.00029999,30]
[392122638,1761180646369,-191.726479,0.00029999,30]
[392122639,1761180646379,-191.726479,0.00029999,30]
[392122640,1761180646389,-191.726479,0.00029999,30]
[392122641,1761180646398,-191.726479,0.00029999,30]
[392122642,1761180646408,-191.726479,0.00029999,30]
[392122643,1761180646418,-191.726479,0.00029999,30]
[392122644,1761180646427,-191.726479,0.00029999,30]
[392122645,1761180646437,-191.726479,0.00029999,30]
[392122646,1761180646446,-151.0,0.00029999,30]
[392122647,1761180646456,-191.726479,0.00029999,30]
[392122648,1761180646466,-191.726479,0.00029999,30]
[392122649,1761180646476,-191.726479,0.00029999,30]
[392122650,1761180646485,-191.726479,0.00029999,30]
[392122651,1761180646495,-191.726479,0.00029999,30]
[392122652,1761180646504,-191.72648757,0.00029999,30]
[392122653,1761180646514,-8922.34612698,0.0003,15]
[392122654,1761180646523,-151.778802,0.0003,15]
[392122655,1761180646532,-151.0,0.0003,2]
[392122656,1761180646542,-160.0,0.0003,15]
[392122657,1761180646552,-160.0,0.0003,15]
[392122658,1761180646562,-160.0,0.0003,15]
[392122659,1761180646571,-160.0,0.0003,20]
[392122660,1761180646581,-160.0,0.0003,20]
[392122661,1761180646590,-160.0,0.0003,30]
[392122662,1761180646600,-160.0,0.0003,30]
[392122663,1761180646609,-452.15075517,0.00030057,2]
[392122664,1761180646618,-300.0,0.000301,12]
[392122665,1761180646627,-173.45,0.000301,12]
[392122666,1761180646636,-190.44629045,0.00030145,2]
[392122667,1761180646646,-500.0,0.00030157,2]
[392122668,1761180646655,-500.0,0.00030157,2]
[392122669,1761180646664,-500.0,0.00030157,2]
[392122670,1761180646674,-400.0,0.00030157,2]
[392122671,1761180646683,-500.0,0.00030157,2]
[392122672,1761180646692,-500.0,0.00030157,2]
[392122673,1761180646702,-500.0,0.00030157,2]
[392122674,1761180646711,-500.0,0.00030157,2]
[392122675,1761180646721,-500.0,0.00030157,2]
[392122676,1761180646730,-500.0,0.00030157,2]
[392122677,1761180646741,-500.0,0.00030157,2]
[392122678,1761180646751,-500.0,0.00030157,2]
[392122679,1761180646760,-500.0,0.00030157,2]
[392122680,1761180646770,-500.0,0.00030157,2]
[392122681,1761180646779,-500.0,0.00030157,2]
[392122682,1761180646788,-500.0,0.00030157,2]
[392122683,1761180646797,-272.40880883,0.00030157,2]
[392122690,1761180906332,250.0,0.00035442,30]
[392122691,1761180906400,355.72392448,0.00035442,30]
[392122692,1761180906947,250.0,0.00035442,30]
[392122696,1761181383788,308.3,0.000241,2]
[392122699,1761181450735,1000.0,0.00024,60]
[392122700,1761181460076,1000.0,0.00024,60]
[392122701,1761181462527,1000.0,0.00024,60]
[392122702,1761181463527,1000.0,0.00024,60]
[392122703,1761181464522,1000.0,0.00024,60]
[392122704,1761181465375,1000.0,0.00024,60]
[392122705,1761181466149,1000.0,0.00024,60]
[392122706,1761181466899,1000.0,0.00024,60]
[392122707,1761181467589,1000.0,0.00024,60]
[392122708,1761181468313,1000.0,0.00024,60]
[392122709,1761181469024,1000.0,0.00024,60]
[392122710,1761181476741,1000.0,0.00024,60]
[392122711,1761181477950,1000.0,0.00024,60]
[392122712,1761181479200,1000.0,0.00024,60]
[392122713,1761181480334,1000.0,0.00024,60]
[392122714,1761181481058,1000.0,0.00024,60]
[392122715,1761181481729,1000.0,0.00024,60]
[392122716,1761181482384,1000.0,0.00024,60]
[392122717,1761181491099,1000.0,0.00024,60]
[392122718,1761181491863,1000.0,0.00024,60]
[392122719,1761181492534,1000.0,0.00024,60]
[392122720,1761181493232,1000.0,0.00024,60]
[392122725,1761181503399,1000.0,0.00024,60]
[392122726,1761181504338,1000.0,0.00024,60]
[392122728,1761181505082,1000.0,0.00024,60]
[392122729,1761181505837,1000.0,0.00024,60]
[392122732,1761181507810,1000.0,0.00024,60]
[392122733,1761181508564,1000.0,0.00024,60]
[392122735,1761181516020,578.74,0.00024,60]
[392122767,1761181744481,1367.0,0.0002,2]
[392122828,1761181832069,-164.66254792,0.0002485,3]
[392122831,1761181832079,-246.82023632,0.00025001,2]
[392122833,1761181832088,-204.901384,0.00025504,2]
[392122835,1761181832097,-291.24787886,0.00027001,2]
[392122837,1761181832106,-172.5349543,0.0002844,2]
[392122838,1761181832115,-335.6755214,0.00029001,2]
[392122840,1761181832124,-40.71536432,0.0002991,2]
[392122843,1761181832135,-258.37185039,0.0002991,2]
[392123120,1761181843088,-6012.70459947,0.0002991,2]
[392123292,1761183016968,218.6908791,0.0002415,5]
[392123329,1761183036820,-1268.54571687,0.00024142,2]
[392123387,1761183037399,263.033169,0.00013699,2]
[392123407,1761183037612,263.033169,0.00020187,2]
[392123466,1761183038295,-0.25264203,0.00024142,2]
[392123467,1761183038305,-1350.85284037,0.0002465,2]
[392123469,1761183038316,-743.42134733,0.0002465,2]
[392123471,1761183038325,-229.49938425,0.00025211,2]
[392123473,1761183038335,-168.204717,0.00025663,2]
[392123475,1761183038344,-602.16119796,0.00026354,10]
[392123477,1761183038354,-263.033169,0.00026676,2]
[392123479,1761183038364,-270.80927342,0.00027211,2]
[392123481,1761183038374,-254.0686132,0.00028208,2]
[392123483,1761183038384,-312.11916258,0.00029211,2]
[392123485,1761183038394,-161.586399,0.00029342,15]
[392123487,1761183038403,-168.204717,0.00029726,2]
[392123489,1761183038414,-853.56232178,0.000298,2]
[392123491,1761183038423,-507.06943747,0.000298,2]
[392123507,1761183040409,-3244.53497938,0.000298,2]
[392123508,1761183040419,-300.0,0.00029874,2]
[392123509,1761183040428,-902.1418049,0.00029875,2]
[392123510,1761183040437,-3867.78342983,0.0002991,2]
[392124207,1761183065897,425.5,0.0003013,120]
[392124208,1761183132267,150.0,0.00021385,2]
[392124209,1761183132673,150.0,0.00023329,2]
[392124217,1761183309064,322.17253379,0.00035443,30]
[392124262,1761184098954,4422.0,0.00035446,30]
[392124394,1761184232415,-248.81031786,0.00025211,2]
[392124395,1761184232425,-194.341006,0.00025695,2]
[392124396,1761184232434,-293.59617508,0.00027211,2]
[392124397,1761184232443,-561.41909945,0.00028735,2]
[392124398,1761184232452,-200.0,0.000288,3]
[392124399,1761184232462,-151.085669,0.00028825,30]
[392124400,1761184232470,-300.0,0.00028825,2]
[392124401,1761184232480,-1200.0,0.00028825,2]
[392124403,1761184232489,-3649.58925582,0.00028826,2]
[392124405,1761184232499,-351.81480622,0.00028826,2]
[392124407,1761184232509,-273.25,0.00028826,10]
[392124410,1761184232519,-227.71,0.00028826,10]
[392124411,1761184232528,-4545.48032222,0.00028826,2]
[392124413,1761184232537,-500.0,0.00028835,2]
[392124415,1761184232546,-500.0,0.00028835,2]
[392124417,1761184232555,-500.0,0.00028835,2]
[392124419,1761184232564,-500.0,0.00028835,2]
[392124421,1761184232574,-500.0,0.00028835,2]
[392124423,1761184232583,-500.0,0.00028835,2]
[392124425,1761184232592,-500.0,0.00028835,2]
[392124428,1761184232601,-500.0,0.00028835,2]
[392124440,1761184232710,-500.0,0.00028835,2]
[392124442,1761184232720,-500.0,0.00028835,2]
[392124444,1761184232729,-500.0,0.00028835,2]
[392124446,1761184232738,-500.0,0.00028835,2]
[392124448,1761184232747,-500.0,0.00028835,2]
[392124450,1761184232756,-500.0,0.00028835,2]
[392124452,1761184232765,-500.0,0.00028835,2]
[392124454,1761184232775,-500.0,0.00028835,2]
[392124456,1761184232784,-500.0,0.00028835,2]
[392124458,1761184232793,-500.0,0.00028835,2]
[392124461,1761184232803,-500.0,0.00028835,2]
[392124463,1761184232814,-500.0,0.00028835,2]
[392124465,1761184232823,-500.0,0.00028835,2]
[392124467,1761184232832,-474.50381115,0.00028835,2]
[392124469,1761184232841,-500.0,0.00028835,2]
[392124470,1761184232851,-500.0,0.00028835,2]
[392124472,1761184232861,-500.0,0.00028835,2]
[392124474,1761184232871,-500.0,0.00028835,2]
[392124476,1761184232880,-500.0,0.00028835,2]
[392124478,1761184232889,-500.0,0.00028835,2]
[392124480,1761184232899,-500.0,0.00028835,2]
[392124482,1761184232909,-500.0,0.00028835,2]
[392124484,1761184232919,-500.0,0.00028835,2]
[392124486,1761184232928,-500.0,0.00028835,2]
[392124488,1761184232938,-500.0,0.00028835,2]
[392124490,1761184232947,-500.0,0.00028835,2]
[392124492,1761184232956,-500.0,0.00028835,2]
[392124494,1761184232967,-500.0,0.00028835,2]
[392124496,1761184232976,-500.0,0.00028835,2]
[392124498,1761184232986,-500.0,0.00028835,2]
[392124500,1761184232995,-500.0,0.00028835,2]
[392124502,1761184233004,-500.0,0.00028835,2]
[392124504,1761184233013,-500.0,0.00028835,2]
[392124505,1761184233023,-500.0,0.00028835,2]
[392124507,1761184233033,-500.0,0.00028835,2]
[392124509,1761184233043,-500.0,0.00028835,2]
[392124511,1761184233052,-500.0,0.00028835,2]
[392124513,1761184233062,-550.0,0.00028835,2]
[392124515,1761184233071,-500.0,0.00028835,2]
[392124517,1761184233081,-500.0,0.00028835,2]
[392124519,1761184233091,-500.0,0.00028835,2]
[392124521,1761184233104,-151.0,0.00028835,30]
[392124523,1761184233114,-151.0,0.00028835,30]
[392124525,1761184233123,-151.0,0.00028835,30]
[392124527,1761184233132,-66103.34920869,0.00028836,30]
[392125047,1761184238326,-13440.69713802,0.00028836,30]
[392125049,1761184238338,-15455.95365329,0.00028836,30]
[392125051,1761184238347,-162.78271259,0.00029,10]
[392125053,1761184238358,-183.554,0.00029066,21]
[392125055,1761184238368,-981.9487427,0.00029074,2]
[392125057,1761184238377,-363.0315933,0.00029074,2]
[392125059,1761184238387,-338.38203229,0.00029211,2]
[392125061,1761184238396,-160.0,0.000293,15]
[392125063,1761184238406,-194.341006,0.00029643,2]
[392125066,1761184238416,-157.515279,0.00029643,2]
[392125068,1761184238425,-24781.26559557,0.0002991,2]
[392125466,1761184289171,40000.0,0.00035446,30]
[392125477,1761184665645,1502.40671175,0.00035443,120]
[392125484,1761184770527,385.0,0.00035445,30]
[392125522,1761184964488,23830.0,0.00035445,30]
[392125540,1761185108272,215.85287239,0.00035445,30]
[392125546,1761185135269,1000.0,0.00035445,30]
[392125547,1761185136334,1000.0,0.00035445,30]
[392125548,1761185136942,1000.0,0.00035445,30]
[392125549,1761185137306,1000.0,0.00035445,30]
[392125550,1761185137794,1000.0,0.00035445,30]
[392125551,1761185138269,1000.0,0.00035445,30]
[392125552,1761185138751,1000.0,0.00035445,30]
[392125553,1761185139262,1000.0,0.00035445,30]
[392125554,1761185140596,1000.0,0.00035445,30]
[392125560,1761185178064,692.8,0.00035445,30]
[392125597,1761185364983,588.00433335,0.00035445,30]
[392125632,1761185432572,-402.15750587,0.00024563,2]
[392125633,1761185432581,-239.14353911,0.00025252,2]
[392125635,1761185432592,-174.906905,0.00025706,2]
[392125637,1761185432601,-240.48745981,0.00027252,2]
[392125639,1761185432612,-41.70191634,0.00027252,2]
[392125641,1761185432624,-325.23521319,0.00029252,2]
[392125643,1761185432634,-194.5235096,0.00029442,30]
[392125644,1761185432642,-167.67381353,0.00029442,30]
[392125645,1761185432656,-17.40640817,0.00029442,30]
[392125646,1761185432665,-174.906905,0.00029586,2]
[392125647,1761185432674,-155.34235,0.00029586,2]
[392125648,1761185432683,-152.97317364,0.000299,2]
[392125649,1761185432692,-1046.83078023,0.0002991,2]
[392125946,1761185438543,-1607.44801557,0.0002991,2]
[392125947,1761185438559,-1018.95959998,0.0002991,2]
[392125948,1761185438570,-675.67,0.0002991,2]
[392125949,1761185438581,-425.78757059,0.0002991,2]
[392125950,1761185438594,-2814.70574874,0.0002991,2]
[392125954,1761185438606,-3912.81558953,0.0002991,2]
[392125956,1761185438617,-455.18249544,0.0002991,2]
[392125958,1761185438628,-1603.22358985,0.0002991,2]
[392125959,1761185438641,-4365.2599885,0.0002991,2]
[392125960,1761185438651,-24587.5945974,0.0002991,2]
[392125961,1761185438662,-3927.11006066,0.0002991,2]
[392126025,1761186107381,2000.0,0.00030137,120]
[392126026,1761186143679,153.35,0.00035444,30]
[392126034,1761186336392,20000.0,0.0002415,5]
[392126038,1761186389308,223.578193,0.00013699,2]
[392126039,1761186389519,223.578193,0.00020187,2]
[392126067,1761186491065,3221.45541926,0.00035444,120]
[392126068,1761186509752,151.73538642,0.00035444,120]
[392126071,1761186513111,2717.32059677,0.00029,120]
[392126074,1761186525393,178.41272308,0.00035444,120]
[392126631,1761186637865,-300.0,0.00024649,2]
[392126632,1761186637876,-500.0,0.00024649,2]
[392126633,1761186637887,-500.0,0.00024649,2]
[392126634,1761186637899,-500.0,0.00024649,2]
[392126635,1761186637909,-500.0,0.00024649,2]
[392126637,1761186637919,-500.0,0.00024649,2]
[392126638,1761186637929,-402.45038112,0.00024649,2]
[392126639,1761186637939,-2058.60322064,0.0002465,2]
[392127027,1761186646189,-2036.53321101,0.0002465,2]
[392127028,1761186686273,200.0,0.0003,120]
[392127029,1761186851446,150.0,0.00021519,2]
[392127030,1761186851878,150.0,0.00023475,2]
[392127031,1761186968018,509.0,0.00024458,31]
[392127032,1761187051335,156.0,0.00030137,120]
[392127038,1761187138171,199.999999,0.00035444,30]
[392127047,1761187219838,1424.37365476,0.00035444,60]
[392127067,1761187661918,200.0,0.00035444,60]
[392127183,1761187832001,-252.36254753,0.00024498,2]
[392127185,1761187832011,-135.35288299,0.00024499,2]
[392127187,1761187832024,-164.64711701,0.00024499,2]
[392127189,1761187832034,-300.0,0.00024499,2]
[392127191,1761187832044,-300.0,0.00024499,2]
[392127193,1761187832053,-1200.0,0.00024499,2]
[392127195,1761187832063,-3937.83500841,0.000245,2]
[392127747,1761187837981,-6062.16499159,0.000245,2]
[392127748,1761187837992,-322.49448679,0.00024649,2]
[392127749,1761187838001,-8151.93946782,0.0002465,2]
[392127750,1761187838032,-4087.8144759,0.0002465,2]
[392127788,1761187843043,-811.8,0.0002465,2]
[392127811,1761187846378,-1980.61212347,0.0002465,2]
[392127812,1761187876261,150.0,0.00021552,2]
[392127813,1761187876674,150.0,0.00023511,2]
[392127814,1761188005988,150.0,0.00021511,2]
[392127815,1761188006902,150.0,0.00023467,2]
[392127816,1761188071155,150.0,0.00021524,2]
[392127828,1761188608384,159.018334,0.00023593,2]
[392127987,1761189032247,-400.0,0.00024649,2]
[392127989,1761189032256,-277.16529658,0.00024649,2]
[392127991,1761189032266,-147.27470342,0.00024649,2]
[392127995,1761189032299,-152.72529658,0.00024649,2]
[392127997,1761189032308,-300.0,0.00024649,2]
[392127999,1761189032318,-529.69111136,0.0002465,2]
[392128015,1761189038050,-22081.04190816,0.0002465,2]
[392128016,1761189038060,-509.38620877,0.0002465,2]
[392128017,1761189038069,-166.0,0.0002465,3]
[392128018,1761189038079,-184.897666,0.00025,8]
[392128019,1761189038088,-4523.68053216,0.00025716,2]
[392128020,1761189038098,-184.897666,0.00025716,2]
[392128021,1761189038107,-491.24171201,0.00025987,2]
[392128022,1761189038117,-202.31708279,0.00026086,2]
[392128023,1761189038126,-40123.7695493,0.00026088,30]
[392128025,1761189038135,-327.05504996,0.00026649,2]
[392128026,1761189038145,-65.02599353,0.00026676,2]
[392128027,1761189038156,-158.55219947,0.00026676,2]
[392128028,1761189038165,-420.0,0.00026713,2]
[392128029,1761189038175,-293.660261,0.00026848,7]
[392128030,1761189038184,-184.897666,0.00026925,8]
[392128031,1761189038194,-169.17766571,0.0002713,2]
[392128032,1761189038204,-264.65,0.00027297,30]
[392128033,1761189038213,-500.0,0.00027397,30]
[392128034,1761189038223,-500.0,0.00027397,30]
[392128035,1761189038232,-500.0,0.00027397,30]
[392128036,1761189038243,-500.0,0.00027397,30]
[392128037,1761189038253,-500.0,0.00027397,30]
[392128038,1761189038263,-523.246537,0.00027397,30]
[392128039,1761189038272,-184.897666,0.00028084,2]
[392128040,1761189038282,-155.34235,0.00028084,2]
[392128041,1761189038291,-200.0,0.00028356,15]
[392128042,1761189038301,-1408.0,0.00028384,2]
[392128043,1761189038320,-376.94480335,0.00028649,2]
[392128044,1761189038331,-184.897666,0.0002885,8]
[392128045,1761189038342,-155.34235,0.0002885,8]
[392128046,1761189038352,-193.26889262,0.0002885,8]
[392128047,1761189038362,-587.0,0.00028949,2]
[392128048,1761189038373,-1243.7,0.00029,30]
[392128049,1761189038383,-1328.51030737,0.00029018,7]
[392128084,1761189040246,-500.0,0.00026086,2]
[392128090,1761189040298,-216.73168598,0.00026086,2]
[392128092,1761189040308,-500.0,0.00026086,2]
[392128094,1761189040317,-500.0,0.00026086,2]
[392128096,1761189040330,-500.0,0.00026086,2]
[392128098,1761189040340,-500.0,0.00026086,2]
[392128100,1761189040350,-500.0,0.00026086,2]
[392128102,1761189040359,-500.0,0.00026086,2]
[392128104,1761189040369,-500.0,0.00026086,2]
[392128106,1761189040378,-159.00454602,0.00026086,2]
[392128423,1761189176169,5000.0,0.00035445,38]
[392128424,1761189222514,5000.0,0.00035445,43]
[392128427,1761189698673,417.15472785,0.0002415,5]
[392128428,1761189733376,992.10495325,0.00035445,30]
[392128492,1761190094424,4859.0,0.00035445,120]
[392128575,1761190232356,-1031.79068606,0.0002465,2]
[392128576,1761190232368,-262.58924453,0.00025217,2]
[392128577,1761190232379,-436.29914864,0.00026565,2]
[392128578,1761190232391,-226.77,0.00027,30]
[392128579,1761190232402,-309.85530855,0.00027217,2]
[392128580,1761190232413,-2529.1048852,0.00028,30]
[392128581,1761190232427,-676.8951148,0.00028,30]
[392128582,1761190232437,-256.5448852,0.00029,2]
[392128593,1761190238573,-227.74597759,0.00029,2]
[392128594,1761190238583,-79.48969263,0.00029018,7]
[392128595,1761190238593,-154.081389,0.00029175,8]
[392128596,1761190238604,-300.0,0.00029216,2]
[392128597,1761190238614,-357.12137256,0.00029217,2]
[392128598,1761190238623,-1408.0,0.0002925,2]
[392128599,1761190238633,-351.0,0.00029827,7]
[392128600,1761190238643,-1407.0,0.0002985,7]
[392128601,1761190238653,-160.0,0.00029859,3]
[392128602,1761190238662,-70237.87282775,0.0002991,2]
[392128603,1761190238674,-5231.93822584,0.0002991,2]
[392128604,1761190238686,-360.82507419,0.0002991,2]
[392128741,1761190264660,217.504016,0.00013699,2]
[392128742,1761190264868,217.504016,0.00020187,2]
[392128746,1761190311391,150.0,0.00021907,2]
[392128747,1761190312475,150.0,0.00023899,2]
[392128748,1761190379156,150.0,0.00021525,2]
[392128749,1761190379603,150.0,0.00023482,2]
[392128751,1761190428900,233.49056,0.0003013,120]
[392128752,1761190446582,150.0,0.00021611,2]
[392128753,1761190446992,150.0,0.00023576,2]
[392128754,1761190513739,150.0,0.00021614,2]
[392128755,1761190514144,150.0,0.00023579,2]
[392128757,1761190892142,5000.0,0.0002415,5]
[392128758,1761191220857,150.0,0.00021633,2]
[392128759,1761191221293,150.0,0.000236,2]
[392128763,1761191285702,150.0,0.00021632,2]
[392128764,1761191304641,4728.59,0.0002415,5]
[392128862,1761191432694,-243.99792602,0.00024581,2]
[392128865,1761191432704,-287.9175527,0.00026581,2]
[392128868,1761191432713,-217.504016,0.00026676,2]
[392128871,1761191432722,-692.5812277,0.00028107,2]
[392128874,1761191432731,-88.67655978,0.00028113,2]
[392129384,1761191438836,-65.40482922,0.00028113,2]
[392129386,1761191438845,-331.83717939,0.00028581,2]
[392129387,1761191438855,-351.0,0.00028621,2]
[392129390,1761191438866,-703.0,0.00028636,2]
[392129392,1761191438876,-460.10840024,0.0002864,2]
[392129607,1761191446905,-946.89159976,0.0002864,2]
[392129608,1761191446915,-1424.42025957,0.0002864,2]
[392129609,1761191446924,-351.0,0.0002865,2]
[392129610,1761191446934,-351.0,0.00028759,2]
[392129611,1761191446943,-351.0,0.00028824,2]
[392129612,1761191446953,-351.0,0.00028836,2]
[392129613,1761191446962,-351.0,0.00028883,7]
[392129614,1761191446972,-300.0,0.00028946,2]
[392129615,1761191446981,-1407.0,0.00028947,2]
[392129616,1761191446991,-351.0,0.00029014,7]
[392129617,1761191447010,-351.0,0.00029069,7]
[392129618,1761191447021,-351.0,0.00029126,2]
[392129619,1761191447031,-703.0,0.00029161,7]
[392129620,1761191447040,-351.0,0.00029204,2]
[392129621,1761191447050,-154.081389,0.00029256,2]
[392129622,1761191447061,-155.34235,0.00029256,2]
[392129623,1761191447071,-1407.0,0.00029368,2]
[392129624,1761191447081,-351.0,0.00029446,2]
[392129625,1761191447091,-160.0,0.00029491,3]
[392129626,1761191447100,-351.0,0.00029509,2]
[392129627,1761191447111,-3652.0,0.00029559,2]
[392129628,1761191447121,-351.0,0.0002957,2]
[392129629,1761191447131,-635.084,0.00029705,2]
[392129630,1761191447141,-983.0,0.00029705,2]
[392129631,1761191447152,-2165.0,0.00029705,2]
[392129632,1761191447162,-292.12458476,0.00029705,2]
[392130141,1761192637706,-246.22287286,0.00025229,2]
[392130143,1761192637716,-154.081389,0.000258,2]
[392130145,1761192637726,-2081.99142119,0.00025962,2]
[392130147,1761192637738,-2918.00857881,0.00025962,2]
[392130148,1761192637748,-154.081389,0.0002629,2]
[392130150,1761192637758,-263.5966404,0.00026297,2]
[392130151,1761192637767,-1200.0,0.00026779,2]
[392130152,1761192637777,-154.081389,0.0002678,2]
[392130153,1761192637787,-300.0,0.00026848,2]
[392130154,1761192637796,-380.0,0.00026889,2]
[392130155,1761192637806,-154.081389,0.00026965,8]
[392130156,1761192637815,-290.54298997,0.00027229,2]